bitfinex-derivatives/quotes_BTCF0:USTF0_20240830
["timestamp","ask_amount","ask_price","bid_price","bid_amount"]
[1724982929272,0.22223786,59291.0,59289.0,0.084573]
[1724982929573,0.22323786,59291.0,59290.0,0.084318]
[1724982929777,0.22423786,59291.0,59290.0,0.084318]
[1724982932185,0.22323786,59291.0,59290.0,0.084318]
[1724982932479,0.22423786,59291.0,59290.0,0.084318]
[1724982944391,0.22423786,59291.0,59290.0,0.445118]
[1724982944688,0.19594609,59291.0,59290.0,0.445118]
[1724982944889,0.19594609,59291.0,59290.0,0.655018]
[1724982946492,0.19594609,59291.0,59290.0,0.294218]
[1724982946707,0.01044044,59291.0,59290.0,0.294218]
[1724982946994,0.01044044,59291.0,59290.0,0.655018]
[1724982947497,0.01044044,59291.0,59290.0,0.68430922]
[1724982948680,0.01044044,59291.0,59290.0,0.655018]
[1724982957496,0.001647,59299.0,59298.0,0.168614]
[1724982957690,0.000253,59300.0,59299.0,0.12]
[1724982957894,0.000253,59300.0,59299.0,4.75672]
[1724982958099,0.19604952,59300.0,59299.0,5.35672]
[1724982958900,0.19604952,59300.0,59299.0,4.841025]
[1724982959602,0.19604952,59300.0,59299.0,1.071025]
[1724982960200,0.19704952,59300.0,59299.0,1.071025]
[1724982961198,0.19704952,59300.0,59299.0,1.09984414]
[1724982961714,0.19704952,59300.0,59299.0,1.69984414]
[1724982961715,0.19804952,59300.0,59299.0,1.69984414]
[1724982962005,0.19804952,59300.0,59299.0,0.47392414]
[1724982963798,0.19804952,59300.0,59299.0,0.11312414]
[1724982963998,0.19804952,59300.0,59299.0,0.83472414]
[1724982964499,0.19804952,59300.0,59299.0,0.805905]
[1724982966206,0.19804952,59300.0,59299.0,0.445105]
[1724982969694,0.19804952,59300.0,59299.0,0.565105]
[1724982972507,0.19804952,59300.0,59299.0,0.445105]
[1724982972710,1.42396952,59300.0,59294.0,0.3608]
[1724982972914,0.204311,59295.0,59294.0,0.3608]
[1724982973210,0.084318,59291.0,59289.0,0.000253]
[1724982973398,0.218,59290.0,59289.0,0.000253]
[1724982973594,0.49061642,59290.0,59289.0,0.000253]
[1724982974000,0.37061642,59290.0,59289.0,0.000253]
[1724982974505,0.37261642,59290.0,59289.0,0.000253]
[1724982974904,0.28829842,59290.0,59289.0,0.000253]
[1724982975109,0.19029842,59290.0,59289.0,0.084573]
[1724982976002,0.19129842,59290.0,59289.0,0.084573]
[1724982977202,0.19129842,59290.0,59289.0,0.1135069]
[1724982977603,0.19129842,59290.0,59289.0,0.084573]
[1724982978602,0.19029842,59290.0,59289.0,0.084573]
[1724982979597,0.18929842,59290.0,59289.0,0.084573]
[1724982980501,0.18929842,59290.0,59289.0,0.445373]
[1724982982313,0.18929842,59290.0,59289.0,0.084573]
[1724982982605,0.18929842,59290.0,59289.0,0.806173]
[1724982985001,0.18929842,59290.0,59289.0,1.686493]
[1724982985309,0.18829842,59290.0,59289.0,2.386893]
[1724982985806,0.02867805,59303.0,59299.0,0.084305]
[1724982986014,0.02867805,59303.0,59299.0,0.805905]
[1724982986305,0.19572372,59300.0,59299.0,0.805905]
[1724982987709,0.19672372,59300.0,59299.0,0.805905]
[1724982991212,0.19572372,59300.0,59299.0,0.807905]
[1724982992415,0.19772372,59300.0,59299.0,0.086305]
[1724982992612,0.19772372,59300.0,59299.0,0.807905]
[1724982992815,0.19772372,59300.0,59299.0,0.805905]
[1724982993416,0.19772372,59300.0,59299.0,0.084305]
[1724982993620,0.19772372,59300.0,59299.0,0.806905]
[1724982994012,0.19572372,59300.0,59299.0,0.086305]
[1724982994213,0.19572372,59300.0,59299.0,0.807905]
[1724982997316,0.19572372,59300.0,59299.0,0.086305]
[1724982997816,0.19572372,59300.0,59299.0,0.807905]
[1724983000922,0.19572372,59300.0,59299.0,0.447105]
[1724983001525,0.20072372,59300.0,59299.0,0.446105]
[1724983001722,0.20072372,59300.0,59299.0,0.445105]
[1724983001913,0.20472372,59300.0,59299.0,0.445105]
[1724983006428,0.20072372,59300.0,59299.0,0.445105]
[1724983006630,0.20072372,59300.0,59299.0,0.446105]
[1724983007436,0.19572372,59300.0,59299.0,0.446105]
[1724983007642,0.19572372,59300.0,59299.0,0.089305]
[1724983007838,0.19572372,59300.0,59299.0,0.450105]
[1724983008133,0.20072372,59300.0,59299.0,0.446105]
[1724983008339,0.20472372,59300.0,59299.0,0.445105]
[1724983008940,0.30562372,59300.0,59299.0,0.445105]
[1724983015050,0.40042372,59300.0,59299.0,0.445105]
[1724983017049,0.40042372,59300.0,59299.0,0.084305]
[1724983018255,1.50634372,59300.0,59298.0,0.3608]
[1724983018451,0.01266082,59299.0,59298.0,0.3608]
[1724983018854,0.70204499,59299.0,59298.0,0.3608]
[1724983019353,0.78634999,59299.0,59298.0,0.3608]
[1724983019753,0.79034999,59299.0,59298.0,0.3608]
[1724983021155,0.28442999,59299.0,59297.0,0.084308]
[1724983021361,0.27176917,59299.0,59297.0,0.084308]
[1724983021953,0.27376917,59299.0,59297.0,0.084308]
[1724983022258,0.084307,59298.0,59297.0,0.084308]
[1724983022758,0.26839222,59298.0,59297.0,0.084308]
[1724983023263,0.084308,59297.0,59296.0,0.3608]
[1724983023463,0.09696882,59297.0,59296.0,0.3608]
[1724983023659,0.78808041,59297.0,59296.0,0.3608]
[1724983024467,1.38808041,59297.0,59296.0,0.3608]
[1724983025664,1.38908041,59297.0,59296.0,0.3608]
[1724983026962,1.67908041,59297.0,59296.0,0.3608]
[1724983028061,1.59477241,59297.0,59292.0,0.3608]
[1724983028273,0.01266082,59296.0,59292.0,0.3608]
[1724983028461,0.47619159,59297.0,59292.0,0.3608]
[1724983028660,0.47619159,59297.0,59289.0,0.000253]
[1724983028661,0.084318,59291.0,59289.0,0.000253]
[1724983028863,0.084318,59291.0,59290.0,0.3608]
[1724983029261,0.26202976,59291.0,59290.0,0.3608]
[1724983029864,0.084318,59290.0,59289.0,0.004253]
[1724983030066,1.49547882,59290.0,59289.0,0.004253]
[1724983030267,0.27819514,59290.0,59289.0,0.004253]
[1724983030468,0.18221632,59290.0,59289.0,0.004253]
[1724983030776,0.18221632,59290.0,59289.0,0.449373]
[1724983031162,0.18221632,59290.0,59289.0,0.445373]
[1724983031364,0.18121632,59290.0,59289.0,0.445373]
[1724983031879,0.18221632,59290.0,59289.0,0.446373]
[1724983032481,0.18321632,59290.0,59289.0,0.446373]
[1724983036075,0.18321632,59290.0,59289.0,0.566373]
[1724983036371,0.18321632,59290.0,59289.0,0.446373]
[1724983037668,0.18321632,59290.0,59289.0,0.566373]
[1724983038771,0.15583354,59295.0,59290.0,0.084317]
[1724983038975,0.15583354,59295.0,59291.0,0.084316]
[1724983039171,0.1761024,59294.0,59291.0,0.084316]
[1724983040483,0.1761024,59294.0,59292.0,0.3608]
[1724983041067,0.1761024,59294.0,59291.0,0.084316]
[1724983041270,0.1761024,59294.0,59292.0,0.3608]
[1724983041679,0.1761024,59294.0,59292.0,0.3618]
[1724983042082,0.1761024,59294.0,59292.0,0.3608]
[1724983042477,0.1761024,59294.0,59292.0,0.445115]
[1724983042683,0.1761024,59294.0,59293.0,0.084314]
[1724983045074,0.1761024,59294.0,59293.0,0.085314]
[1724983059385,0.084318,59290.0,59289.0,0.000253]
[1724983059693,0.39784345,59290.0,59289.0,0.000253]
[1724983059891,0.90384345,59290.0,59289.0,0.000253]
[1724983060091,0.91650427,59290.0,59289.0,0.000253]
[1724983060285,1.87730427,59290.0,59282.0,0.0039]
[1724983060489,1.87730427,59290.0,59280.0,0.3608]
[1724983060490,0.12,59283.0,59280.0,0.3608]
[1724983060689,0.2827,59282.0,59280.0,0.3608]
[1724983060887,0.45921298,59282.0,59280.0,0.3608]
[1724983061289,0.45921298,59282.0,59275.0,0.000253]
[1724983061589,0.12,59276.0,59275.0,0.000253]
[1724983061988,0.31451888,59276.0,59275.0,0.000253]
[1724983062591,0.19451888,59276.0,59275.0,0.000253]
[1724983062789,0.31451888,59276.0,59275.0,0.000253]
[1724983063003,0.19579443,59277.0,59275.0,0.000253]
[1724983063183,0.204336,59278.0,59275.0,0.000253]
[1724983063380,0.19579443,59276.0,59275.0,0.000253]
[1724983063686,0.17896953,59277.0,59275.0,0.000253]
[1724983063895,0.204336,59278.0,59275.0,0.000253]
[1724983064090,0.17896953,59277.0,59275.0,0.000253]
[1724983064497,0.001,59276.0,59275.0,0.000253]
[1724983064887,0.17563312,59276.0,59275.0,0.000253]
[1724983065291,0.17563312,59277.0,59275.0,0.000253]
[1724983065492,0.12,59276.0,59275.0,0.000253]
[1724983065690,0.121,59276.0,59275.0,0.000253]
[1724983065891,0.30667038,59276.0,59275.0,0.000253]
[1724983067305,0.18667038,59276.0,59275.0,0.000253]
[1724983067601,0.18767038,59276.0,59275.0,0.000253]
[1724983068099,0.18767038,59276.0,59275.0,0.084592]
[1724983072500,0.30767038,59276.0,59275.0,0.084592]
[1724983074491,0.33829071,59276.0,59275.0,0.084592]
[1724983074698,0.21829071,59276.0,59275.0,0.084592]
[1724983077708,0.21829071,59276.0,59275.0,0.445392]
[1724983083704,0.33829071,59276.0,59275.0,0.445392]
[1724983096513,0.21829071,59276.0,59275.0,0.445392]
[1724983096715,0.18767038,59276.0,59275.0,0.445392]
[1724983097322,0.18767038,59276.0,59275.0,0.716592]
[1724983099223,0.18767038,59276.0,59275.0,0.445392]
[1724983103023,0.02704085,59278.0,59277.0,0.084337]
[1724983103519,0.21349969,59278.0,59277.0,0.084337]
[1724983104517,0.33349969,59278.0,59277.0,0.084337]
[1724983105025,0.33449969,59278.0,59277.0,0.085337]
[1724983105413,0.33549969,59278.0,59277.0,0.086337]
[1724983105921,0.18845884,59278.0,59277.0,0.086337]
[1724983106113,0.18845884,59278.0,59277.0,0.447137]
[1724983108622,0.18845884,59278.0,59277.0,0.11660862]
[1724983108819,0.18845884,59278.0,59277.0,0.83820862]
[1724983110323,0.18720584,59278.0,59277.0,0.92254562]
[1724983112235,0.09764384,59278.0,59277.0,2.14862562]
[1724983112925,8.4e-07,59278.0,59277.0,2.14862562]
[1724983113320,5.7e-07,59278.0,59277.0,2.14862562]
[1724983114028,5.7e-07,59278.0,59277.0,5.91862562]
[1724983115717,5.7e-07,59278.0,59277.0,5.19702562]
[1724983115924,5.7e-07,59278.0,59277.0,5.91862562]
[1724983117126,0.0039,59285.0,59284.0,0.084327]
[1724983117327,0.0039,59292.0,59286.0,0.084324]
[1724983117533,0.0039,59292.0,59286.0,0.951124]
[1724983117740,0.1843287,59287.0,59286.0,0.445124]
[1724983117936,0.1843287,59287.0,59286.0,0.565124]
[1724983118639,0.1843287,59287.0,59286.0,0.567124]
[1724983119031,0.1843287,59287.0,59286.0,0.569124]
[1724983121540,0.1843287,59287.0,59286.0,0.59992802]
[1724983122437,0.1843287,59287.0,59286.0,0.47992802]
[1724983122628,0.1843287,59287.0,59286.0,0.569124]
[1724983124238,0.1843287,59287.0,59286.0,0.3648]
[1724983125032,0.2686507,59287.0,59286.0,0.3648]
[1724983126034,0.29922034,59287.0,59286.0,0.3648]
[1724983131447,0.2686507,59287.0,59286.0,0.3648]
[1724983131649,0.0039,59292.0,59291.0,0.084317]
[1724983131849,0.0039,59299.0,59295.0,0.084311]
[1724983132044,0.1827,59301.0,59298.0,0.3608]
[1724983132250,0.12,59299.0,59298.0,0.3608]
[1724983132645,0.30472198,59299.0,59298.0,0.3608]
[1724983133240,0.18472198,59299.0,59298.0,0.3608]
[1724983133442,0.18472198,59299.0,59298.0,0.445107]
[1724983133647,0.18593161,59300.0,59298.0,0.445107]
[1724983133948,0.21266515,59301.0,59298.0,0.445107]
[1724983133949,0.011,59299.0,59298.0,0.445107]
[1724983134255,0.20482988,59299.0,59298.0,0.445107]
[1724983134656,0.21482988,59299.0,59298.0,0.445107]
[1724983134846,0.84074988,59299.0,59293.0,0.084565]
[1724983135049,0.01265962,59298.0,59293.0,0.084565]
[1724983135354,0.19309904,59297.0,59293.0,0.084565]
[1724983135755,0.12,59295.0,59293.0,0.000253]
[1724983136059,0.34847543,59294.0,59293.0,0.000253]
[1724983136443,0.86709505,59294.0,59293.0,0.000253]
[1724983137351,0.87309505,59294.0,59293.0,0.000253]
[1724983137854,0.87809505,59294.0,59293.0,0.000253]
[1724983139264,1.47809505,59294.0,59293.0,0.000253]
[1724983141458,0.87809505,59294.0,59293.0,0.000253]
[1724983142465,1.47809505,59294.0,59293.0,0.000253]
[1724983142666,1.50834147,59294.0,59293.0,0.000253]
[1724983144459,1.86914147,59294.0,59293.0,0.000253]
[1724983144663,1.50834147,59294.0,59293.0,0.000253]
[1724983149861,1.59265347,59294.0,59287.0,0.0039]
[1724983150068,0.12,59288.0,59283.0,0.0039]
[1724983150265,0.3608,59289.0,59279.0,0.0039]
[1724983150266,0.12,59284.0,59279.0,0.0039]
[1724983150462,0.084337,59277.0,59276.0,0.0039]
[1724983150661,0.084337,59277.0,59275.0,0.204339]
[1724983150863,0.27122095,59277.0,59275.0,0.204339]
[1724983151071,0.26922095,59277.0,59275.0,0.204339]
[1724983151268,0.26722095,59277.0,59276.0,0.12]
[1724983151668,0.26722095,59277.0,59276.0,0.204338]
[1724983151976,0.26822095,59277.0,59276.0,0.204338]
[1724983152872,0.26922095,59277.0,59276.0,0.204338]
[1724983154174,0.26922095,59277.0,59276.0,0.084338]
[1724983154371,0.18888395,59277.0,59274.0,0.3608]
[1724983154574,0.12,59275.0,59274.0,0.3608]
[1724983154879,0.31324077,59275.0,59274.0,0.3608]
[1724983155265,0.14244429,59275.0,59274.0,0.3608]
[1724983155462,0.26244429,59275.0,59274.0,0.3608]
[1724983155768,0.34678329,59275.0,59274.0,0.3608]
[1724983156563,0.084345,59271.0,59270.0,0.000253]
[1724983156770,0.204345,59271.0,59270.0,0.000253]
[1724983156972,0.38152517,59271.0,59270.0,0.000253]
[1724983157671,0.38252517,59271.0,59270.0,0.000253]
[1724983158578,0.41254163,59271.0,59270.0,0.000253]
[1724983159073,0.41354163,59271.0,59270.0,0.000253]
[1724983162070,0.29354163,59271.0,59270.0,0.000253]
[1724983172080,0.20919663,59271.0,59270.0,0.000253]
[1724983173782,0.20919663,59271.0,59270.0,0.0846]
[1724983175694,0.20919663,59271.0,59270.0,0.4454]
[1724983183785,0.32919663,59271.0,59270.0,0.361053]
[1724983184587,0.29354163,59271.0,59270.0,0.361053]
[1724983185993,0.29354163,59271.0,59270.0,0.4454]
[1724983186802,0.20919663,59271.0,59270.0,0.4454]
[1724983187095,0.20883774,59271.0,59270.0,0.4454]
[1724983192490,0.20883774,59271.0,59270.0,0.8062]
[1724983193795,0.17856828,59271.0,59270.0,1.996707]
[1724983194002,0.17856828,59271.0,59270.0,0.8062]
[1724983198306,0.17856828,59271.0,59270.0,0.83662217]
[1724983200397,0.17856828,59271.0,59270.0,0.4454]
[1724983201814,0.17856828,59271.0,59270.0,0.5654]
[1724983202304,0.17856828,59271.0,59270.0,0.7332]
[1724983202702,0.17856828,59271.0,59270.0,1.83936]
[1724983203806,0.17856828,59271.0,59270.0,1.923715]
[1724983205801,0.17856828,59271.0,59270.0,1.562915]
[1724983206012,0.17856828,59271.0,59270.0,1.684515]
[1724983208212,0.08828228,59271.0,59270.0,2.284515]
[1724983208412,2.8e-07,59271.0,59270.0,2.284515]
[1724983208602,0.18975123,59271.0,59270.0,2.284515]
[1724983210019,0.18975123,59271.0,59270.0,1.684515]
[1724983210810,0.18975123,59271.0,59270.0,0.974]
[1724983211111,0.18975123,59271.0,59270.0,0.4454]
[1724983211519,0.09386373,59275.0,59272.0,0.084351]
[1724983211820,0.12,59273.0,59270.0,0.361053]
[1724983212315,0.18673462,59272.0,59270.0,0.361053]
[1724983213008,0.18473462,59272.0,59270.0,0.361053]
[1724983213203,0.18473462,59272.0,59271.0,0.204354]
[1724983213411,0.18473462,59272.0,59271.0,0.565154]
[1724983213904,0.18573462,59272.0,59271.0,0.565154]
[1724983214716,0.18573462,59272.0,59271.0,0.567154]
[1724983216123,0.18673462,59272.0,59271.0,0.448154]
[1724983216416,0.002,59272.0,59271.0,0.448154]
[1724983216921,0.1850923,59272.0,59271.0,0.448154]
[1724983218513,0.1850923,59272.0,59271.0,0.47849483]
[1724983219821,0.1850923,59272.0,59271.0,0.448154]
[1724983225419,0.4750923,59272.0,59271.0,0.3638]
[1724983225718,1.5812523,59272.0,59271.0,0.3638]
[1724983225919,1.59391192,59272.0,59271.0,0.003]
[1724983226123,2.12966392,59272.0,59271.0,0.003]
[1724983227319,2.12966392,59272.0,59271.0,0.001]
[1724983227830,2.12966392,59272.0,59270.0,0.000253]
[1724983227831,0.083354,59271.0,59270.0,0.000253]
[1724983228029,0.09601362,59271.0,59270.0,0.000253]
[1724983228332,0.79333679,59271.0,59270.0,0.000253]
[1724983228636,0.28717679,59271.0,59270.0,0.000253]
[1724983228935,0.79333679,59271.0,59270.0,0.000253]
[1724983229433,1.39433679,59271.0,59270.0,0.000253]
[1724983230324,1.39533679,59271.0,59270.0,0.000253]
[1724983231230,1.39533679,59271.0,59263.0,0.0039]
[1724983231434,0.3608,59264.0,59243.0,0.3608]
[1724983231625,0.29,59249.0,59243.0,0.3608]
[1724983231923,0.08439,59246.0,59243.0,0.3608]
[1724983232329,0.18989825,59245.0,59243.0,0.3608]
[1724983232535,0.27429025,59245.0,59243.0,0.3608]
[1724983232921,0.084392,59245.0,59243.0,0.3608]
[1724983233125,0.18712638,59244.0,59243.0,0.3608]
[1724983233829,0.27151838,59244.0,59243.0,0.3608]
[1724983234222,0.27151838,59244.0,59239.0,0.000253]
[1724983234223,0.084395,59242.0,59239.0,0.000253]
[1724983234526,0.17938011,59241.0,59239.0,0.000253]
[1724983234927,0.084398,59240.0,59239.0,0.000253]
[1724983235335,0.2649351,59240.0,59239.0,0.000253]
[1724983236019,0.1805371,59240.0,59239.0,0.000253]
[1724983236418,0.03467312,59241.0,59239.0,0.000253]
[1724983236622,0.18817937,59240.0,59239.0,0.000253]
[1724983237026,0.19117937,59240.0,59239.0,0.000253]
[1724983237224,0.55197937,59240.0,59239.0,0.000253]
[1724983237423,0.19117937,59240.0,59239.0,0.000253]
[1724983237722,0.19217937,59240.0,59239.0,0.000253]
[1724983238231,0.18917937,59240.0,59239.0,0.000253]
[1724983240033,0.27357737,59240.0,59239.0,0.000253]
[1724983240224,0.18917937,59240.0,59239.0,0.000253]
[1724983240429,0.19217937,59240.0,59239.0,0.000253]
[1724983241144,0.19217937,59240.0,59239.0,0.084644]
[1724983241326,0.19217937,59240.0,59239.0,0.445444]
[1724983243322,0.18917937,59240.0,59239.0,0.445444]
[1724983243524,0.19017937,59240.0,59239.0,0.445444]
[1724983253542,0.18817937,59240.0,59239.0,0.445444]
[1724983253745,0.001,59240.0,59239.0,0.445444]
[1724983253943,0.19691201,59240.0,59239.0,0.445444]
[1724983256739,0.28130101,59240.0,59239.0,0.361053]
[1724983258539,0.31109512,59240.0,59239.0,0.361053]
[1724983259854,0.15617125,59240.0,59239.0,0.445444]
[1724983261862,0.07178225,59240.0,59239.0,0.445444]
[1724983264549,0.15908225,59240.0,59239.0,0.445444]
[1724983266157,0.53347125,59240.0,59239.0,0.361053]
[1724983266355,0.54614449,59240.0,59239.0,0.361053]
[1724983267443,0.61786025,59240.0,59239.0,0.000253]
[1724983267656,0.63053419,59240.0,59239.0,0.000253]
[1724983268444,0.54614519,59240.0,59239.0,0.000253]
[1724983268651,0.24347125,59240.0,59239.0,0.000253]
[1724983269257,0.15617125,59240.0,59239.0,0.000253]
[1724983269459,0.15617125,59240.0,59239.0,0.445444]
[1724983269945,0.11177394,59247.0,59239.0,0.445444]
[1724983269946,0.07095577,59247.0,59239.0,0.445444]
[1724983270152,0.19541724,59240.0,59239.0,0.445444]
[1724983270557,0.084385,59243.0,59242.0,0.084386]
[1724983270753,0.02996004,59247.0,59246.0,0.084381]
[1724983271060,0.000253,59250.0,59248.0,0.084377]
[1724983271352,0.18700589,59249.0,59248.0,0.084377]
[1724983273561,0.19800589,59249.0,59248.0,0.084377]
[1724983273960,0.21100589,59249.0,59248.0,0.084377]
[1724983278463,0.21100589,59249.0,59248.0,1.480737]
[1724983278659,0.21100589,59249.0,59248.0,1.652037]
[1724983278962,0.11321989,59249.0,59248.0,1.736415]
[1724983279855,0.11321989,59249.0,59248.0,1.76630021]
[1724983282258,0.11321989,59249.0,59248.0,1.08192221]
[1724983282462,0.11321989,59249.0,59248.0,0.28556221]
[1724983283165,0.11321989,59249.0,59248.0,0.255677]
[1724983283464,0.19759589,59249.0,59245.0,0.084381]
[1724983283859,0.18459589,59249.0,59245.0,0.084381]
[1724983284162,0.18459589,59249.0,59248.0,0.002]
[1724983284552,0.18559589,59249.0,59246.0,0.08438]
[1724983284968,0.17459589,59249.0,59248.0,0.001]
[1724983285658,0.09021989,59249.0,59246.0,0.08438]
[1724983285860,0.09521989,59249.0,59246.0,0.08438]
[1724983286067,0.09421989,59249.0,59246.0,0.08438]
[1724983286366,0.084378,59248.0,59243.0,0.3608]
[1724983286559,0.169178,59248.0,59243.0,0.3608]
[1724983286869,0.18419304,59247.0,59244.0,0.084384]
[1724983287056,0.26857304,59247.0,59244.0,0.084384]
[1724983287258,0.26857304,59247.0,59243.0,0.3608]
[1724983287259,0.084381,59246.0,59243.0,0.3608]
[1724983287563,0.18098889,59245.0,59243.0,0.3608]
[1724983287961,0.18098889,59245.0,59239.0,0.084643]
[1724983288157,0.29,59243.0,59239.0,0.000253]
[1724983288361,0.084389,59240.0,59239.0,0.000253]
[1724983288772,0.7689816,59240.0,59239.0,0.000253]
[1724983289269,0.78165345,59240.0,59239.0,0.000253]
[1724983290058,0.78265345,59240.0,59239.0,0.000253]
[1724983290259,0.78465345,59240.0,59239.0,0.000253]
[1724983291266,0.92745345,59240.0,59239.0,0.000253]
[1724983292672,0.93025345,59240.0,59239.0,0.000253]
[1724983294771,1.01464245,59240.0,59239.0,0.000253]
[1724983297875,0.86904245,59240.0,59239.0,0.000253]
[1724983298074,1.01464245,59240.0,59239.0,0.000253]
[1724983298274,0.50824245,59240.0,59239.0,0.000253]
[1724983298872,1.01464245,59240.0,59239.0,0.000253]
[1724983299171,1.0019706,59240.0,59239.0,0.000253]
[1724983299377,1.01464245,59240.0,59239.0,0.000253]
[1724983301176,0.50824245,59240.0,59239.0,0.000253]
[1724983301486,0.4955706,59240.0,59239.0,0.000253]
[1724983301872,0.3499706,59240.0,59239.0,0.000253]
[1724983302173,1.6019706,59240.0,59239.0,0.000253]
[1724983302479,1.61464245,59240.0,59239.0,0.000253]
[1724983303374,0.084399,59233.0,59232.0,0.0039]
[1724983303573,0.374399,59233.0,59225.0,0.3647]
[1724983303881,0.29,59226.0,59225.0,0.3608]
[1724983304382,0.46641659,59226.0,59225.0,0.3608]
[1724983304571,0.55082559,59226.0,59225.0,0.3608]
[1724983304772,0.26082559,59226.0,59225.0,0.3608]
[1724983304981,0.25982559,59226.0,59225.0,0.3608]
[1724983305678,0.25982559,59226.0,59225.0,0.3628]
[1724983305983,0.25982559,59226.0,59225.0,0.3638]
[1724983307683,0.17541659,59226.0,59225.0,0.448211]
[1724983308981,0.17541659,59226.0,59225.0,1.554731]
[1724983309483,0.17541659,59226.0,59225.0,0.954731]
[1724983309681,0.17541659,59226.0,59225.0,1.554731]
[1724983310583,0.17541659,59226.0,59225.0,1.58483646]
[1724983315386,0.17541659,59226.0,59225.0,1.66924746]
[1724983315683,0.00025322,59231.0,59230.0,0.168808]
[1724983315878,0.00025322,59231.0,59230.0,1.326088]
[1724983316089,0.0039,59238.0,59237.0,0.084394]
[1724983316281,0.0039,59245.0,59244.0,0.084384]
[1724983316474,0.09704185,59254.0,59244.0,0.084384]
[1724983316475,0.0039,59252.0,59244.0,0.6508]
[1724983316679,0.18746648,59252.0,59251.0,0.084374]
[1724983317183,0.04239041,59254.0,59251.0,0.084374]
[1724983317388,0.19442773,59252.0,59251.0,0.084374]
[1724983317687,0.19442773,59253.0,59251.0,0.084374]
[1724983317885,0.014,59252.0,59251.0,0.084374]
[1724983318283,0.19442773,59252.0,59251.0,0.084374]
[1724983318678,0.02667185,59254.0,59251.0,0.084374]
[1724983318976,0.20010038,59253.0,59251.0,0.084374]
[1724983319178,0.014,59253.0,59251.0,0.084374]
[1724983319481,0.18369498,59252.0,59251.0,0.084374]
[1724983319679,0.19769498,59252.0,59251.0,0.084374]
[1724983320085,0.014,59252.0,59251.0,0.084374]
[1724983320283,0.19667131,59252.0,59251.0,0.084374]
[1724983320680,0.21067131,59252.0,59251.0,0.085374]
[1724983320879,0.21067131,59252.0,59251.0,1.191694]
[1724983321185,0.19667131,59252.0,59251.0,1.191694]
[1724983321686,0.19667131,59252.0,59251.0,1.276068]
[1724983322181,0.19667131,59252.0,59251.0,1.275068]
[1724983322387,0.21067131,59252.0,59251.0,1.276068]
[1724983322888,0.19667131,59252.0,59251.0,1.276068]
[1724983323090,0.21067131,59252.0,59251.0,1.276068]
[1724983323988,0.21067131,59252.0,59251.0,1.30695157]
[1724983324387,0.21067131,59252.0,59251.0,1.30595157]
[1724983324388,0.19667131,59252.0,59251.0,1.30595157]
[1724983324578,0.18467131,59252.0,59251.0,1.31695157]
[1724983324778,3.1e-07,59252.0,59251.0,1.40132557]
[1724983324984,5.3e-07,59257.0,59256.0,0.168732]
[1724983325189,0.0039,59264.0,59263.0,0.084357]
[1724983325381,0.0848,59279.0,59263.0,0.084357]
[1724983325382,0.0039,59271.0,59270.0,0.084347]
[1724983325582,0.176588,59275.0,59270.0,0.6508]
[1724983325790,0.176588,59278.0,59275.0,0.084339]
[1724983325980,0.11582949,59279.0,59275.0,0.084339]
[1724983326180,0.176588,59276.0,59275.0,0.084339]
[1724983326384,0.18802522,59278.0,59275.0,0.084339]
[1724983326685,0.11582949,59279.0,59275.0,0.084339]
[1724983326894,0.18802522,59278.0,59275.0,0.084339]
[1724983328091,0.56236022,59278.0,59274.0,0.3608]
[1724983328391,0.0912,59277.0,59275.0,0.001]
[1724983328580,0.0912,59277.0,59275.0,0.002]
[1724983328783,0.18795745,59276.0,59275.0,0.002]
[1724983329282,0.18795745,59276.0,59274.0,0.3628]
[1724983330789,0.084339,59275.0,59274.0,0.002]
[1724983330980,0.084342,59274.0,59271.0,0.00025322]
[1724983331290,0.26795997,59273.0,59271.0,0.00025322]
[1724983331887,0.18361797,59273.0,59271.0,0.00025322]
[1724983332290,0.01,59274.0,59273.0,0.084342]
[1724983332591,0.19680133,59274.0,59273.0,0.084342]
[1724983332895,0.20580133,59274.0,59273.0,0.084342]
[1724983333694,0.19580133,59274.0,59273.0,0.084342]
[1724983334289,0.18680133,59274.0,59273.0,0.084342]
[1724983334593,0.21080133,59274.0,59273.0,0.085342]
[1724983334799,0.024,59274.0,59273.0,0.085342]
[1724983335185,0.20426059,59274.0,59273.0,0.085342]
[1724983342502,0.20426059,59274.0,59273.0,1.191462]
[1724983342693,0.20426059,59274.0,59273.0,0.085342]
[1724983343699,0.20426059,59274.0,59273.0,0.591462]
[1724983343998,0.20426059,59274.0,59273.0,1.275804]
[1724983344194,0.0039,59282.0,59281.0,0.084331]
[1724983344408,0.0039,59289.0,59281.0,1.095931]
[1724983344598,0.0039,59289.0,59282.0,0.676069]
[1724983344897,0.18721297,59283.0,59282.0,1.359569]
[1724983345601,0.19221297,59283.0,59282.0,1.359569]
[1724983345896,0.19921297,59283.0,59282.0,1.360569]
[1724983346298,0.19921297,59283.0,59282.0,1.444898]
[1724983347204,0.19921297,59283.0,59282.0,1.47503972]
[1724983349501,0.19921297,59283.0,59282.0,0.11547072]
[1724983350104,0.19421297,59283.0,59282.0,0.12447072]
[1724983350700,0.18721297,59283.0,59282.0,1.22951072]
[1724983350895,0.18721297,59283.0,59282.0,1.22751072]
[1724983351095,0.18721297,59283.0,59282.0,1.23551072]
[1724983351706,0.18721297,59283.0,59282.0,0.12147072]
[1724983351916,0.18721297,59283.0,59282.0,0.40947072]
[1724983352102,0.18721297,59283.0,59282.0,0.41147072]
[1724983352605,0.18721297,59283.0,59282.0,0.41547072]
[1724983353604,0.18821297,59283.0,59282.0,0.41747072]
[1724983354104,0.18821297,59283.0,59282.0,0.41147072]
[1724983354411,0.18721297,59283.0,59282.0,0.40947072]
[1724983355007,0.18721297,59283.0,59282.0,0.41047072]
[1724983355597,0.18721297,59283.0,59282.0,1.13207072]
[1724983355793,0.18721297,59283.0,59282.0,0.41047072]
[1724983356110,0.18721297,59283.0,59282.0,1.13207072]
[1724983356700,0.18721297,59283.0,59282.0,1.12807072]
[1724983356899,0.18721297,59283.0,59282.0,1.13207072]
[1724983357103,0.18721297,59283.0,59282.0,0.7276]
[1724983357308,0.27154097,59283.0,59282.0,0.7276]
[1724983357603,0.27154097,59283.0,59282.0,0.7236]
[1724983357808,0.27154097,59283.0,59282.0,0.7246]